[Event "XV American Continental 2022"]
[Site "San Salvador"]
[Date "2022.05.09"]
[Round "10.8"]
[White "Arias Gaviria, Mario Alexis"]
[Black "Figueredo Losada, Leonel"]
[Result "0-1"]
[ECO "A56"]
[WhiteElo "2181"]
[BlackElo "2337"]
[Annotator "TA"]
[PlyCount "118"]
[EventDate "2022.05.02"]
[EventCountry "ESA"]
[SourceTitle "playchess.com"]
[Source "ChessBase"]
[SourceQuality "1"]
[TimeControl "40/5400+30:1800+30"]

{[%evp 9,118,33,30,22,27,-2,29,12,24,33,27,0,0,9,0,13,19,0,18,23,13,12,16,0,0,0,13,-18,-19,-25,-11,-13,-14,-41,-47,-61,0,0,0,-2,0,0,0,0,14,22,45,0,0,0,0,-551,-532,-529,-526,-508,-468,-555,-572,-569,-562,-637,-637,-648,-631,-699,-683,-666,-415,-1035,-983,-2285,-2278,-2190,-2166,-2175,-2195,-2110,-1976,-2005,-1956,-1536,-2146,-1918,-1885,-2678,-2352,-2678,-2676,-2520,-2326,-29984,-29985,-29985,-29986,-29986,-29987,-29986,-29984,-29990,-29991,-29993,-29989,-29989,-29990,-29990,-29991,-29991,-29988,-29988,-29989]} 1. d4 {[%emt 0:08:47]} Nf6 {[%emt 0:00:42]} 2. c4 {[%emt 0:00:02]} c5 {[%emt 0:00:05]} 3. d5 {[%emt 0:00:02]} a6 {[%emt 0:00:05]} 4. e3 {[%emt 0:04:16]} e6 {[%emt 0:00:17]} 5. Nc3 {[%emt 0:02:12]} exd5 {[%emt 0:00:08]} 6. Nxd5 {[%emt 0:02:33] A56: Czech Benoni.} Nxd5 {[%emt 0:00:15] [#]} 7. cxd5 $146 {[%emt 0:03:38]} ({Predecessor:} 7. Qxd5 d6 8. Nf3 Nc6 9. Bd2 Be6 10. Qe4 Be7 11. Bc3 Bf6 12. a3 O-O 13. Qc2 {0-1 (30) Ganiev,T (1960)-Gavrilov,A (2153) Gornozavodsk 2009}) 7... b5 {[%emt 0:00:23]} 8. Nf3 {[%emt 0:08:53] White has an edge.} d6 {[%emt 0:00:04]} 9. a4 {[%emt 0:00:36]} b4 {[%emt 0:00:14]} 10. b3 {[%emt 0:00:33]} Be7 {[%emt 0:00:32]} 11. Bd3 {[%emt 0:01:43]} Bf6 {[%emt 0:07:44] Inhibits Bb2.} 12. Ra2 {[%emt 0:00:14]} Bg4 {[%emt 0:07:37]} 13. h3 {[%emt 0:04:45]} Bxf3 {[%emt 0:05:30]} 14. Qxf3 {[%emt 0:04:09]} O-O {[%emt 0:02:47]} 15. O-O {[%emt 0:08:40]} Nd7 {[%emt 0:00:30]} 16. Qe4 {[%emt 0:00:17][%csl Gd3][%cal Re4h7]} g6 {[%emt 0:00:07]} 17. f4 {[%emt 0:00:09]} Bc3 {[%emt 0:26:16]} 18. g4 {[%emt 0:16:31]} Nb6 {[%emt 0:12:48]} 19. a5 $1 {[%emt 0:12:17] [#]} Re8 $1 {[%emt 0:01:37]} 20. Qf3 {[%emt 0:00:03] [#]} c4 $1 {[%emt 0:00:06]} 21. bxc4 {[%emt 0:00:05]} (21. axb6 cxd3) 21... Nd7 {[%emt 0:00:06]} 22. e4 {[%emt 0:00:11]} Qf6 {[%emt 0:06:48]} (22... b3 $15 23. Re2 f6) 23. Kh1 {[%emt 0:15:37]} Nc5 {[%emt 0:05:35] Threatens to win with ...b3.} 24. Bb1 {[%emt 0:00:09]} Qd4 {[%emt 0:03:07][%csl LRc4,LRe4]} 25. Re2 {[%emt 0:00:32][%cal Oe4e5]} Qxc4 {[%emt 0:01:54]} 26. e5 {[%emt 0:00:10]} Ra7 {[%emt 0:00:26][%cal Rd6e5]} 27. e6 {[%emt 0:01:53]} fxe6 {[%emt 0:08:52]} 28. f5 {[%emt 0:00:00]} e5 $1 $36 {[%emt 0:01:56][%mdl 2048] Black has the initiative.} (28... Qb3 $2 29. Ba2 Qxa2 30. Rxa2 $18) 29. fxg6 {[%emt 0:00:11]} e4 {[%emt 0:01:36]} 30. Qf7+ {[%emt 0:05:48][%mdl 8192] Black continues to play with concentration.} Rxf7 $19 {[%emt 0:00:05]} 31. gxf7+ {[%emt 0:00:00]} Kf8 {[%emt 0:00:05]} 32. Bh6+ {[%emt 0:00:30]} Ke7 {[%emt 0:00:02]} 33. fxe8=Q+ {[%emt 0:00:33]} Kxe8 {[%emt 0:00:03]} 34. Ref2 {[%emt 0:00:39] Intending Rf8+ and mate.} Qxd5 {[%emt 0:00:11]} 35. Rf5 {[%emt 0:00:39]} Be5 {[%emt 0:00:54] Active counter play!} 36. Be3 {[%emt 0:00:32]} Ne6 {[%emt 0:01:00] Hoping for ...Qb3.} 37. Kg2 {[%emt 0:00:39]} Qb3 {[%emt 0:00:25]} 38. Re1 {[%emt 0:00:28]} Qc3 {[%emt 0:01:10]} 39. Rff1 {[%emt 0:00:29] [#]} (39. Bf2 $142 Nc5 40. Re2 (40. Bxe4 $2 Nxe4 41. Rxe4 b3 $19)) 39... Bf4 $1 {[%emt 0:01:40][%mdl 512]} 40. Bxf4 {[%emt 0:00:16]} (40. Bxe4 Bxe3) 40... Nxf4+ {[%emt 0:00:04][%mdl 64] Remove Defender} 41. Rxf4 {[%emt 0:30:26]} Qd2+ {[%emt 0:30:04]} 42. Re2 {[%emt 0:00:00]} Qxe2+ {[%emt 0:00:00][%mdl 4096] Endgame KQ-KRB} 43. Rf2 {[%emt 0:00:00]} Qe3 {[%emt 0:00:00]} 44. h4 {[%emt 0:00:00]} d5 {[%emt 0:00:00]} 45. g5 {[%emt 0:00:00]} d4 {[%emt 0:00:00]} 46. Bc2 {[%emt 0:00:00]} d3 {[%emt 0:00:00][%cal Oe3f2] ( -> ...Qxf2+!)} 47. Bd1 {[%emt 0:00:00]} d2 {[%emt 0:00:00] ...Ke7 is the strong threat.} 48. Bh5+ {[%emt 0:00:00]} Ke7 {[%emt 0:00:00]} 49. Rf7+ {[%emt 0:00:00]} Ke6 {[%emt 0:00:00] aiming for ...Qe1.} 50. Rxh7 {[%emt 0:00:00] [#]} Qf3+ $3 {[%emt 0:00:00][%mdl 512] Black mates.} 51. Bxf3 {[%emt 0:00:00]} exf3+ {[%emt 0:00:00] KR-KP} 52. Kg3 {[%emt 0:00:00]} d1=Q {[%emt 0:00:00] KQ-KR} 53. Rh6+ {[%emt 0:00:00]} Ke5 {[%emt 0:00:00]} 54. Rf6 {[%emt 0:00:00]} b3 {[%emt 0:00:00][%cal Bb4b3,Bb3b2][%mdl 32]} 55. Rb6 {[%emt 0:00:00]} Qg1+ {[%emt 0:00:00]} 56. Kxf3 {[%emt 0:00:00] [#]} Qxb6 $3 {[%emt 0:00:00][%mdl 512]} 57. axb6 {[%emt 0:00:00]} b2 {[%emt 0:00:00]} 58. g6 {[%emt 0:00:00]} Kf6 {[%emt 0:00:00]} 59. g7 {[%emt 0:00:00]} Kxg7 {[%emt 0:00:00] Weighted Error Value: White=0.49/Black=0.11 (very precise)} 0-1

[Event "XV American Continental 2022"]
[Site "San Salvador"]
[Date "2022.05.09"]
[Round "10.9"]
[White "Hernandez Alvarez, Tania Regla"]
[Black "Sarkar, Justin"]
[Result "0-1"]
[ECO "A09"]
[WhiteElo "2022"]
[BlackElo "2325"]
[Annotator "TA"]
[PlyCount "74"]
[EventDate "2022.05.02"]
[EventCountry "ESA"]
[SourceTitle "playchess.com"]
[Source "ChessBase"]
[SourceQuality "1"]
[TimeControl "40/5400+30:1800+30"]

{[%evp 9,74,6,-14,-7,-14,-14,-5,-12,39,37,33,9,19,9,27,21,40,24,24,29,104,96,77,87,168,8,183,156,290,0,0,0,0,0,0,0,0,0,0,0,0,0,0,0,0,0,0,0,0,-227,-218,-224,-219,-216,-219,-606,-546,-834,-795,-1185,-1077,-6203,-12259,-5840,-5716,-1698,-798]} 1. Nf3 {[%emt 0:01:46]} d5 {[%emt 0:00:39]} 2. c4 {[%emt 0:00:28]} d4 {[%emt 0:01:00]} 3. b4 {[%emt 0:00:14]} Bg4 {[%emt 0:01:58]} 4. d3 {[%emt 0:01:08]} Bxf3 {[%emt 0:01:26]} 5. exf3 {[%emt 0:00:11]} e5 {[%emt 0:01:16]} 6. a3 {[%emt 0:00:09] A09: Réti Opening: 1 Nf3 d5 2 c4.} a5 {[%emt 0:01:49]} 7. b5 {[%emt 0:00:50]} Bd6 {[%emt 0:05:10] [#]} 8. Nd2 $146 {[%emt 0:06:13] The position is equal.} ({Predecessor:} 8. g3 Nd7 9. Nd2 Ngf6 10. Bg2 Nc5 11. Qc2 O-O 12. O-O Nfd7 13. Bb2 Qf6 14. Ne4 Nxe4 15. fxe4 {1-0 (36) Kozul,Z (2611)-Kuljasevic,D (2538) Pozega 2018}) 8... Ne7 {[%emt 0:14:52]} (8... Nf6 $11) 9. Ne4 $14 {[%emt 0:03:03] Strongly threatening c5.} Ng6 {[%emt 0:00:48]} 10. Nxd6+ {[%emt 0:02:50]} Qxd6 {[%emt 0:00:48]} 11. g3 {[%emt 0:00:07]} Nd7 {[%emt 0:02:44]} 12. h4 {[%emt 0:05:14]} h5 {[%emt 0:10:01]} 13. Bh3 {[%emt 0:01:54]} Nc5 {[%emt 0:01:00]} 14. a4 {[%emt 0:00:28]} b6 {[%emt 0:01:42]} (14... O-O $1 $11 {keeps the balance.}) 15. O-O $16 {[%emt 0:01:00]} O-O {[%emt 0:06:58]} 16. Ba3 {[%emt 0:05:56]} f5 {[%emt 0:05:52]} (16... Rfe8 $16) 17. Bxc5 $2 {[%emt 0:03:48]} (17. f4 $1 $18) 17... bxc5 $2 {[%emt 0:03:43]} (17... Qxc5 $11 {and Black is okay.} 18. Re1 Rad8) 18. f4 $1 $18 {[%emt 0:04:38]} exf4 {[%emt 0:00:18]} (18... Qf6 $16) 19. Qxh5 $2 {[%emt 0:00:18]} (19. Bg2 $18 {Black must now prevent Bd5+.} Rae8 20. Bd5+ (20. Qxh5 Ne7 $16) 20... Rf7 21. Qf3 (21. Qxh5 fxg3 22. Bxf7+ Kxf7 $18)) 19... fxg3 $11 {[%emt 0:01:07] Hoping for ...Nf4.} 20. Bxf5 {[%emt 0:06:28]} Rf6 {[%emt 0:10:11]} 21. Be4 {[%emt 0:18:16]} gxf2+ {[%emt 0:01:13]} 22. Rxf2 {[%emt 0:03:04]} ({Don't go for} 22. Kh1 $2 Qg3 23. Bd5+ Kf8 $19) 22... Rxf2 {[%emt 0:06:12][%csl Gf2][%cal Rd6h2] Really sharp!} 23. Qd5+ {[%emt 0:03:09]} (23. Kxf2 Rf8+ 24. Ke1 Qg3+ 25. Kd1 Qg1+ 26. Kc2 Rf2+ 27. Kb3 Qxa1) 23... Qxd5 {[%emt 0:00:09]} 24. Bxd5+ {[%emt 0:00:02]} Rf7 {[%emt 0:00:15]} 25. Bxa8 {[%emt 0:00:12][%mdl 4096] Endgame aiming for Bd5. KRB-KRN} Kf8 {[%emt 0:00:08]} 26. h5 {[%emt 0:04:01]} Nf4 {[%emt 0:00:19][%csl LRd3,LRh5]} 27. Be4 {[%emt 0:00:23]} Rf6 {[%emt 0:01:13][%cal Bf7f6,Bf6e6,Be6e3][%mdl 32]} 28. Re1 {[%emt 0:01:30]} Ke7 {[%emt 0:04:53]} 29. Bc6+ $2 {[%emt 0:06:50] [#]} (29. Kh2 $11) 29... Re6 $1 $19 {[%emt 0:01:25]} 30. Rd1 {[%emt 0:02:21] [#]} Re3 $1 {[%emt 0:01:00]} ({Weaker is} 30... Nxh5 31. Kf2 $17) 31. Be4 {[%emt 0:00:45]} Nxh5 {[%emt 0:00:56]} 32. Rf1 $2 {[%emt 0:04:08]} (32. Kf2) 32... Ng3 {[%emt 0:00:50][%csl LRe4,LRf1] Black is clearly winning.} 33. Rf2 {[%emt 0:02:19]} Nxe4 {[%emt 0:00:16]} 34. dxe4 {[%emt 0:00:01]} Rxe4 {[%emt 0:03:02] Threatens to win with ...d3.} 35. Rf5 {[%emt 0:00:50]} d3 {[%emt 0:00:31]} 36. Rd5 {[%emt 0:07:49]} Rd4 {[%emt 0:00:15] ( -> ...d2)} 37. Re5+ {[%emt 0:00:06]} Kd6 {[%emt 0:00:19] What a bad dream for White.  Weighted Error Value: White=0.83/Black=0.23 (precise)} 0-1

[Event "XV American Continental 2022"]
[Site "San Salvador"]
[Date "2022.05.09"]
[Round "10.10"]
[White "Noboa Silva, Kevin"]
[Black "Morales, Carlos"]
[Result "0-1"]
[ECO "E41"]
[WhiteElo "2323"]
[BlackElo "2005"]
[Annotator "TA"]
[PlyCount "92"]
[EventDate "2022.05.02"]
[EventCountry "ESA"]
[SourceTitle "playchess.com"]
[Source "ChessBase"]
[SourceQuality "1"]
[TimeControl "40/5400+30:1800+30"]

{[%evp 15,92,8,16,20,60,64,79,92,72,63,64,55,63,76,79,45,65,58,58,58,64,74,70,84,76,70,79,80,86,89,91,89,97,92,96,87,107,92,125,112,112,115,127,120,118,106,154,133,122,122,149,102,109,61,106,22,28,0,0,0,0,0,0,0,111,103,131,-52,59,-949,-960,-2081,-1878,-29985,-29986,-29989,-29990,-29997,-29996]} 1. d4 {[%emt 0:00:03]} Nf6 {[%emt 0:05:09]} 2. c4 {[%emt 0:00:20]} e6 {[%emt 0:00:04]} 3. Nc3 {[%emt 0:00:14]} Bb4 {[%emt 0:00:13]} 4. e3 {[%emt 0:00:41]} c5 {[%emt 0:00:24]} 5. Bd3 {[%emt 0:01:33]} Nc6 {[%emt 0:01:09]} 6. Nge2 {[%emt 0:00:52]} O-O {[%emt 0:01:17]} 7. O-O {[%emt 0:00:58]} d5 {[%emt 0:00:26]} 8. cxd5 {[%emt 0:00:45] is the legacy move (8.a3).} exd5 {[%emt 0:00:31]} 9. dxc5 {[%emt 0:03:30] [#] E48: Nimzo-Indian: Rubinstein: 5 Bd3 d5 including 6 Ne2, but excluding 6 a3.} Qe7 $146 {[%emt 0:01:09]} ({Predecessor:} 9... Bxc5 10. Bc2 d4 11. Na4 b6 12. Nxc5 bxc5 13. Ba4 Bb7 14. Bxc6 Bxc6 15. exd4 Qd5 16. f3 Rfd8 17. Be3 Bb5 {1-0 (30) Horvath,D (2481)-Schmidt,T (2272) Chess.com INT 2022}) 10. Na4 $1 {[%emt 0:06:23]} Bxc5 {[%emt 0:06:39]} 11. Nxc5 {[%emt 0:02:25] White is better.} Qxc5 {[%emt 0:00:04]} 12. a3 {[%emt 0:00:16]} Rd8 {[%emt 0:00:39]} 13. b4 {[%emt 0:00:34]} Qe7 {[%emt 0:00:11]} 14. Bb2 {[%emt 0:00:17]} Ne5 {[%emt 0:00:46]} 15. Rc1 {[%emt 0:07:57]} Nc4 {[%emt 0:00:50]} 16. Qc2 {[%emt 0:01:24]} Nxb2 {[%emt 0:00:18]} 17. Qxb2 {[%emt 0:00:04]} Be6 {[%emt 0:00:15]} 18. Rfd1 {[%emt 0:06:29]} g6 {[%emt 0:04:54]} 19. Qd4 {[%emt 0:06:22]} Bg4 {[%emt 0:04:27]} 20. f3 {[%emt 0:03:36]} Be6 {[%emt 0:01:28]} 21. Nf4 {[%emt 0:02:07]} a5 {[%emt 0:05:09]} 22. Bb5 {[%emt 0:14:02]} axb4 {[%emt 0:03:47]} 23. axb4 {[%emt 0:00:02]} (23. Qxb4 Qxb4 24. axb4 Rdc8 $11) 23... Bf5 {[%emt 0:01:00]} 24. Rc5 {[%emt 0:06:41]} Rac8 {[%emt 0:02:57]} 25. Rdc1 {[%emt 0:02:41]} Rxc5 {[%emt 0:01:04]} 26. Rxc5 {[%emt 0:00:10]} ({Don't play} 26. Qxc5 Qe5 27. Rd1 Rc8 $14) 26... Rd6 {[%emt 0:00:20]} 27. Ba4 {[%emt 0:06:01][%cal Bb5a4,Ba4b3,Bb3d5][%mdl 32]} g5 {[%emt 0:16:20] [#]} 28. Ne2 Re6 29. Rc8+ Kg7 30. Rc3 (30. h4 {with more complications.} h6 31. Ra8 Qc7 32. hxg5 hxg5 33. Bb3) 30... Re5 (30... Ra6 $142 31. b5 Ra8) 31. Ng3 Bg6 32. Bb3 Kg8 33. Nf1 (33. Rc8+ $142 Kg7 34. Kf2) 33... h6 34. Rc5 ({White should play} 34. g4 $16) 34... Kh7 35. e4 (35. Rb5 $16) 35... g4 $11 36. Bxd5 (36. exd5 $5 {[%cal Rd5d6]} Re1 37. Rc3 $14 (37. fxg4 Qe4 $11)) 36... gxf3 37. gxf3 {[%cal Od5f7] Threatens to win with Bxf7!} Qd6 38. Ng3 {And now f4 would win.} Rg5 $1 39. Kf2 Nh5 (39... Qf4 $1 $11) 40. Rc8 $16 {[%csl Gd4][%cal Rc8h8]} Nf6 {[#]} 41. Qe3 $2 ({White should try} 41. Qc3 $1 $16) 41... Qxb4 (41... Nxd5 $15 42. exd5 Qxb4) 42. h4 $2 {[%mdl 8192] Now White is beyond hope.} (42. Bc4 $14) 42... Nxd5 $19 43. exd5 Qxh4 44. f4 Qh2+ {Black mates.} 45. Kf1 Rxg3 46. Qd4 Bd3+ {Weighted Error Value: White=0.63/Black=0.18 (very precise)} 0-1

[Event "XV American Continental 2022"]
[Site "San Salvador"]
[Date "2022.05.09"]
[Round "10.11"]
[White "Del Castilho, Martyn"]
[Black "Cervantes Landeiro, Thalia"]
[Result "0-1"]
[ECO "B90"]
[WhiteElo "2289"]
[BlackElo "2193"]
[Annotator "TA"]
[PlyCount "60"]
[EventDate "2022.05.02"]
[EventCountry "ESA"]
[SourceTitle "playchess.com"]
[Source "ChessBase"]
[SourceQuality "1"]
[TimeControl "40/5400+30:1800+30"]

{[%evp 17,60,25,26,23,39,27,28,38,42,21,41,34,191,195,204,136,116,89,90,93,92,91,81,70,98,54,44,-28,-23,-44,0,-98,-84,-263,-250,-385,-376,-369,-366,-874,-872,-860,-857,-1517,-1449]} 1. e4 {[%emt 0:00:04]} c5 {[%emt 0:00:06]} 2. Nc3 {[%emt 0:00:09]} a6 {[%emt 0:00:57]} 3. Nf3 {[%emt 0:00:40]} d6 {[%emt 0:00:25]} 4. d4 {[%emt 0:00:22]} cxd4 {[%emt 0:00:08]} 5. Nxd4 {[%emt 0:00:04]} Nf6 {[%emt 0:00:07]} 6. f3 {[%emt 0:00:15]} e5 {[%emt 0:00:09]} 7. Nb3 {[%emt 0:00:04]} Be6 {[%emt 0:00:18]} 8. Be3 {[%emt 0:00:09]} h5 {[%emt 0:00:36]} 9. Qd2 {[%emt 0:00:12]} Nbd7 {[%emt 0:00:51]} 10. Nd5 {[%emt 0:00:15] 10.Nd5 scores better than 10.0-0-0. B90: Sicilian Najdorf: Unusual White 6th moves, 6 Be3 Ng4 and 6 Be3 e5.} Bxd5 {[%emt 0:03:07]} 11. exd5 {[%emt 0:00:08]} g6 {[%emt 0:00:33]} 12. O-O-O {[%emt 0:01:20] White has an edge.} b5 {[%emt 0:12:33]} 13. Kb1 {[%emt 0:06:50]} Rc8 {[%emt 0:06:57]} 14. Na5 {[%emt 0:12:57] And now c4 would win.} Qc7 {[%emt 0:02:59]} (14... Nxd5 $2 15. Nb7 Nxe3 16. Nxd8 Nxd1 17. Nb7 $18 (17. Qxd1 Rxd8 18. Qd5 Bg7 $16)) ({Better is} 14... Nb6 $1 $14) 15. c4 $1 $18 {[%emt 0:03:18]} Bg7 {[%emt 0:22:46]} 16. Nc6 {[%emt 0:07:27] [#]} Nb6 $146 {[%emt 0:10:26]} ({Predecessor:} 16... bxc4 17. Bxc4 Nb8 18. Na7 Rd8 19. Rc1 Qb7 20. Nc6 O-O 21. Nxd8 Rxd8 22. Qa5 Re8 {1-0 (39) Manik,M (2521)-Soham,D (2002) Mumbai 2020}) 17. Rc1 {[%emt 0:02:08]} Nxc4 {[%emt 0:03:18]} 18. Bxc4 {[%emt 0:00:11]} bxc4 {[%emt 0:00:11]} 19. Rxc4 {[%emt 0:00:18][%cal Oc6e5]} O-O {[%emt 0:01:43]} 20. Rhc1 {[%emt 0:00:43][%cal Oe3b6]} Rce8 {[%emt 0:05:31]} 21. Bg5 {[%emt 0:30:44][%cal Oc6e5]} Qd7 {[%emt 0:01:10]} 22. Ra4 {[%emt 0:11:36]} ({White should play} 22. Bxf6 $14 Bxf6 23. Ka1) 22... Qf5+ $11 {[%emt 0:05:25]} 23. Ka1 $1 {[%emt 0:00:28]} e4 {[%emt 0:00:49]} (23... Nxd5 $5 24. Rxa6 Nf6 $11) 24. Rxa6 {[%emt 0:03:33]} (24. Bf4 $1 $11) 24... exf3 $17 {[%emt 0:04:30]} 25. gxf3 {[%emt 0:00:11]} (25. Nd4 $17 {was the only chance.} Qxd5 26. Ra5) 25... Qxf3 $19 {[%emt 0:00:25] Threatens to win with ...Ne4.} 26. Qf4 {[%emt 0:02:01]} (26. Bxf6 {might work better.} Bxf6 27. Rb6) 26... Qe2 {[%emt 0:02:11]} 27. Bxf6 {[%emt 0:04:06]} Qxa6 {[%emt 0:01:40]} 28. Ne7+ $2 {[%emt 0:08:15] [#]} (28. Bxg7 Kxg7 29. a3 (29. Rf1 $2 Re4 $19)) 28... Rxe7 $1 {[%emt 0:02:16][%mdl 512] Black is clearly winning.} 29. Bxe7 {[%emt 0:00:02]} Ra8 {[%emt 0:01:47][%csl Ga8][%cal Ra6a2]} 30. a4 {[%emt 0:02:32]} Qb5 {[%emt 0:02:49] Weighted Error Value: White=0.81/Black=0.14 (very precise)} 0-1

[Event "XV American Continental 2022"]
[Site "San Salvador"]
[Date "2022.05.10"]
[Round "11.1"]
[White "Salinas Herrera, Pablo"]
[Black "Gareyev, Timur"]
[Result "1/2-1/2"]
[ECO "C78"]
[WhiteElo "2534"]
[BlackElo "2565"]
[Annotator "TA"]
[PlyCount "83"]
[EventDate "2022.05.02"]
[EventCountry "ESA"]
[SourceTitle "playchess.com"]
[Source "ChessBase"]
[SourceQuality "1"]
[TimeControl "40/5400+30:1800+30"]

{[%evp 16,83,33,22,25,16,17,16,34,14,25,20,29,21,25,22,22,31,31,24,24,23,52,43,31,40,43,4,65,60,86,0,42,16,24,18,91,75,196,195,237,230,243,109,123,114,114,112,193,92,116,0,0,0,0,-9,-9,-5,-12,-8,-8,-8,-8,0,-7,-15,-17,-15,-18,-58]} 1. e4 {[%emt 0:00:00]} e5 {[%emt 0:00:30]} 2. Nf3 {[%emt 1:31:30]} Nc6 3. Bb5 {[%emt 0:00:00][%cal Bf1b5,Bb5a4,Ba4b3][%mdl 32]} a6 {[%emt 0:00:02]} 4. Ba4 {[%emt 0:00:00]} Nf6 {[%emt 0:00:11]} 5. O-O {[%emt 0:00:00]} Bc5 {[%emt 0:00:03]} 6. c3 {[%emt 0:00:00]} b5 {[%emt 0:00:03]} 7. Bb3 {[%emt 0:00:00]} d6 {[%emt 0:00:06]} 8. a4 {[%emt 0:00:00]} Bg4 {[%emt 0:00:04]} 9. h3 {[%emt 0:00:00]} Bxf3 {[%emt 0:00:07] C78: Ruy Lopez: Archangelsk and Möller Defences.} 10. Qxf3 {[%emt 0:00:00]} Na5 {[%emt 0:00:04]} 11. Bc2 {[%emt 0:00:00] [#] Strongly threatening b4.} b4 {[%emt 0:00:02]} 12. Qd1 Qb8 {[%emt 0:00:30]} 13. d4 b3 {[%emt 0:00:30]} 14. dxc5 {And now Bd3 would win.} bxc2 {[%emt 0:00:30]} 15. Qxc2 {aiming for cxd6.} Nb3 {[%emt 0:00:30]} 16. Ra3 Nxc5 {[%emt 0:00:30]} 17. Nd2 a5 {[%emt 0:00:30]} 18. f3 {[#]} O-O $146 {[%emt 0:00:30]} ({Predecessor:} 18... Qa7 19. Kh2 Rb8 20. Nc4 O-O 21. Rd1 Ne6 22. b3 Qa6 23. Be3 Rfe8 24. Qd3 Qa8 {½-½ (50) Granski,M (2503)-Romm,M (2502) ICCF email 2011}) 19. Nc4 Ne6 {[%emt 0:00:30]} 20. Be3 Qb7 {[%emt 0:00:30]} 21. Qb3 (21. b4 $5) 21... Qc8 {[%emt 0:00:30]} ({Black should try} 21... Qa6 $11) 22. Qa2 $1 $14 {White is more active.} Rd8 {[%emt 0:00:30]} 23. Rb3 (23. b4 $16) 23... d5 {[%emt 0:00:30]} 24. Nxe5 Qa6 {[%emt 0:00:30] Prevents Nc6.} 25. Qb1 dxe4 {[%emt 0:00:30]} (25... Re8 $1 $11) 26. fxe4 $16 Qd6 {[%emt 0:00:30]} (26... Qe2 $16 27. Re1 Qa6) 27. Rb5 $18 c5 {[%emt 0:00:30]} 28. Nc4 {[%csl LRa5,LRd6]} Qc6 {[%emt 0:00:30]} 29. Nxa5 (29. e5 $18 Ne4 30. Qc2 (30. Nxa5 Qd5 $16)) 29... Qxe4 $16 {[%emt 0:00:30]} 30. Qxe4 (30. Bxc5 $2 Nxc5 31. Qxe4 Ncxe4 $17) 30... Nxe4 {[%emt 0:00:30]} 31. Nc6 Rd3 {[%emt 0:00:30]} (31... Re8 $16) 32. Rf3 (32. Bf4 $18 {is more deadly.}) 32... f6 {[%emt 0:00:30] [#]} 33. a5 ({White should play} 33. Ra5 $1 $16 {[%cal Ra5a8]} Rxa5 34. Nxa5) 33... Nd6 $1 $36 {[%emt 0:00:30][%mdl 2048] Black has good play. Pair of Knights! The position is equal.} 34. Rb3 Nc4 {[%emt 0:00:30][%csl LRa5,LRe3]} 35. Kf2 Rd6 {[%emt 0:00:30]} 36. Ne7+ Kf7 {[%emt 0:00:30]} 37. Nf5 {Hoping for Rb7+.} Rd7 {[%emt 0:00:30] Prevents Rb7.} 38. Rb5 Rxa5 {[%emt 0:00:30]} 39. Rxa5 Nxa5 {[%emt 0:00:30]} 40. b4 cxb4 {[%emt 0:00:30]} 41. cxb4 Nc4 {[%emt 0:30:30]} 42. Bc5 {Black defended with fortune.  Weighted Error Value: White=0.20 (precise) /Black=0.21 (precise)} 1/2-1/2

[Event "XV American Continental 2022"]
[Site "San Salvador"]
[Date "2022.05.10"]
[Round "11.2"]
[White "Quesada Perez, Yasser"]
[Black "Yoo, Christopher Woojin"]
[Result "1/2-1/2"]
[ECO "B50"]
[WhiteElo "2560"]
[BlackElo "2535"]
[Annotator "TA"]
[PlyCount "35"]
[EventDate "2022.05.02"]
[EventCountry "ESA"]
[SourceTitle "playchess.com"]
[Source "ChessBase"]
[SourceQuality "1"]
[TimeControl "40/5400+30:1800+30"]

{[%evp 13,20,8,3,0,2,9,5,12,13]} 1. e4 {[%emt 0:00:05]} c5 {[%emt 0:00:05]} 2. Nf3 {[%emt 0:00:05]} d6 {[%emt 0:00:04]} 3. c3 {[%emt 0:00:14]} Nf6 {[%emt 0:00:24]} 4. Be2 {[%emt 0:00:05]} g6 {[%emt 0:01:20]} 5. O-O {[%emt 0:00:06]} Bg7 {[%emt 0:00:05]} 6. Bb5+ {[%emt 0:00:05]} Bd7 {[%emt 0:09:50]} 7. Bxd7+ {[%emt 0:00:29]} Nbxd7 {[%emt 0:01:41][%cal Bb8d7,Bd7e5,Be5f3][%mdl 32] The position is equal.} ({Don't do} 7... Kxd7 8. d4 $16) 8. Re1 {[%emt 0:00:08] B50: Sicilian: 2...d6, Miscellaneous.} Ne5 {[%emt 0:01:31]} 9. d4 {[%emt 0:01:26]} Nxf3+ {[%emt 0:00:08]} 10. Qxf3 {[%emt 0:00:03]} Nd7 {[%emt 0:01:18] [#] Against e5. A rather calm draw.} {Predecessor:} 11. Rd1 $146 O-O 12. Be3 cxd4 13. cxd4 Nb6 14. Nc3 Rc8 15. Bf4 Qd7 16. b3 f5 17. Rac1 fxe4 18. Qxe4 {½-½ (42) Kosteniuk,A (2482)-Dzagnidze,N (2509) Lausanne 2020} 1/2-1/2